bitfinex/quotes_ETHUSD_20250702
["timestamp","ask_amount","ask_price","bid_price","bid_amount"]
[1751486317134,6.50204567,2603.5,2603.3,0.18413821]
[1751486317343,3.84113082,2603.4,2603.3,0.18413821]
[1751486318126,10.0,2603.4,2603.0,0.18413821]
[1751486318302,3.8415735,2603.1,2603.0,0.18413821]
[1751486318502,9.357,2603.3,2603.2,0.18413821]
[1751486318840,13.19827837,2603.3,2603.2,0.18413821]
[1751486319516,9.357,2603.3,2603.2,0.18413821]
[1751486320105,13.19827837,2603.3,2603.2,0.18413821]
[1751486320943,13.19827837,2603.3,2602.5,1.2463]
[1751486320944,3.8415735,2603.1,2603.0,0.18413821]
[1751486322245,13.1565735,2603.1,2603.0,0.18413821]
[1751486324120,10.55,2602.9,2602.1,1.2507]
[1751486324319,10.55,2602.9,2601.4,1.12575236]
[1751486324320,1.2567,2602.6,2601.7,1.2507]
[1751486324536,3.84320085,2602.0,2601.7,1.2507]
[1751486324731,6.50443752,2601.9,2601.7,1.2507]
[1751486324935,3.84349296,2601.8,2601.7,1.2507]
[1751486325145,6.50442893,2601.9,2601.8,0.18413821]
[1751486325526,2.661,2601.9,2601.8,0.18413821]
[1751486325852,6.50434524,2601.9,2601.8,0.18413821]
[1751486326229,3.84239943,2602.6,2602.0,0.18413821]
[1751486326420,2.661,2602.5,2602.4,0.18413821]
[1751486327546,9.232,2602.9,2602.8,0.18413821]
[1751486327950,0.01,2603.6,2603.5,0.18413821]
[1751486329134,3.85083576,2603.6,2603.5,0.18413821]
[1751486330063,0.01,2603.6,2603.5,0.18413821]
[1751486330360,3.85083576,2603.6,2603.5,0.18413821]
[1751486330931,0.01,2603.6,2603.5,0.18413821]
[1751486332568,3.85083576,2603.6,2603.5,0.18413821]
[1751486332965,0.01,2603.6,2603.5,0.18413821]
[1751486333560,3.85083576,2603.6,2603.5,0.18413821]
[1751486333873,2.594,2603.6,2603.5,0.18413821]
[1751486334239,0.01,2603.6,2603.5,0.18413821]
[1751486334550,0.01,2603.6,2603.5,1.52023821]
[1751486338646,0.01,2603.6,2603.5,0.18413821]
[1751486339068,3.85083576,2603.6,2603.5,0.18413821]
[1751486339275,11.3322,2604.3,2603.5,0.18413821]
[1751486339276,28.6581,2605.8,2603.8,1.3018]
[1751486339478,12.12429638,2607.4,2606.4,0.5]
[1751486339648,17.74852692,2608.7,2606.4,0.5]
[1751486339649,4.068,2609.8,2607.5,0.247]
[1751486339972,1.38335583,2610.0,2609.9,4.33156442]
[1751486340139,1.38335583,2610.0,2609.9,1.3919605]
[1751486340344,31.38335583,2610.0,2609.9,0.4638605]
[1751486340570,31.38335583,2610.0,2608.9,0.5]
[1751486340571,30.0,2609.9,2609.7,0.71415276]
[1751486340874,31.17386971,2609.8,2609.4,5.02760444]
[1751486341075,1.17386971,2609.8,2609.4,5.02760444]
[1751486341240,0.1912,2609.4,2609.2,7.18458959]
[1751486341436,46.70344548,2609.3,2609.2,7.18458959]
[1751486341771,46.70344548,2609.3,2608.2,3.68336452]
[1751486341772,30.0,2608.3,2608.2,3.68336452]
[1751486341947,30.0,2608.3,2607.9,3.68336452]
[1751486341948,10.0,2608.2,2607.9,3.68336452]
[1751486342273,0.5689703,2609.1,2607.9,31.2345]
[1751486342474,3.128,2609.2,2608.4,2.9387787]
[1751486342642,3.128,2609.1,2608.4,2.9387787]
[1751486342845,3.128,2609.1,2608.9,0.5]
[1751486343252,3.128,2609.1,2608.4,2.9387787]
[1751486343253,3.128,2609.1,2608.4,3.4387787]
[1751486343573,3.128,2609.1,2608.1,1.3324]
[1751486343574,3.83347389,2608.6,2608.5,0.68807964]
[1751486343784,10.38334739,2608.6,2608.5,0.34401095]
[1751486343956,14.21682128,2608.6,2608.5,0.34401095]
[1751486344471,3.83378506,2608.4,2607.8,3.4387787]
[1751486344654,3.83450285,2607.9,2607.7,2.9387787]
[1751486344846,3.394,2607.8,2607.6,0.5]
[1751486345045,17.22864989,2607.8,2607.7,0.34335334]
[1751486345381,7.22864989,2607.8,2607.7,0.84335334]
[1751486345544,3.394,2607.8,2607.5,0.247]
[1751486346050,3.394,2607.8,2607.7,0.5]
[1751486346658,12.616,2608.3,2608.2,0.5]
[1751486348079,9.22,2609.7,2609.4,0.5]
[1751486348279,9.22,2609.7,2609.6,0.5]
[1751486348577,3.83211651,2609.6,2609.2,0.5]
[1751486348745,1.64461165,2609.5,2609.4,0.5]
[1751486349350,16.44585806,2609.7,2609.6,0.5]
[1751486349793,12.614,2609.7,2609.6,0.5]
[1751486350266,12.614,2609.7,2609.6,0.83997858]
[1751486350877,1.38335583,2610.0,2609.9,0.5]
[1751486351184,1.38335583,2610.0,2609.9,0.8399489]
[1751486351389,1.38335583,2610.0,2609.9,0.5]
[1751486351779,1.59330572,2610.0,2609.9,4.11651407]
[1751486351955,1.59330572,2610.0,2609.9,3.39362535]
[1751486352288,1.59330572,2610.0,2609.9,4.11651407]
[1751486352493,0.9073431,2610.2,2609.9,0.86686665]
[1751486352794,0.4738582,2610.1,2610.0,0.86698307]
[1751486353094,0.9073431,2610.2,2610.1,0.5]
[1751486353250,0.9073431,2610.2,2610.1,1.55818307]
[1751486353251,0.7161431,2610.2,2610.1,1.55818307]
[1751486354553,0.7161431,2610.2,2610.1,4.44091148]
[1751486354747,1.80679664,2610.5,2610.1,1.55818307]
[1751486354946,2.0065963,2610.5,2610.4,0.5]
[1751486355165,0.036,2611.0,2610.9,4.3300969]
[1751486355363,4.08330987,2612.3,2611.5,0.5]
[1751486355585,3.8340703,2611.6,2611.5,0.86698307]
[1751486355858,3.82931201,2611.5,2611.4,0.5]
[1751486356053,5.0837107,2611.6,2611.5,0.5]
[1751486356363,5.0837107,2611.6,2611.0,1.3148]
[1751486356364,3.82936355,2611.4,2611.3,0.5]
[1751486356569,3.82936355,2611.4,2610.9,3.38242375]
[1751486356570,1.27422975,2611.4,2610.9,3.38242375]
[1751486356750,1.27422975,2611.4,2610.4,1.2088]
[1751486356751,7.30647754,2611.4,2611.3,0.5]
[1751486356958,3.8300969,2610.9,2610.8,0.5]
[1751486358062,1.3083,2610.9,2610.8,0.5]
[1751486358368,5.65222265,2610.9,2610.8,0.5]
[1751486358778,0.51382575,2610.9,2610.8,0.5]
[1751486359098,3.82965686,2611.2,2611.1,0.5]
[1751486359299,10.0,2611.1,2609.9,2.88242375]
[1751486359465,10.0,2611.1,2610.0,0.33895216]
[1751486359466,3.83081217,2610.5,2610.0,0.33895216]
[1751486359668,9.211,2610.5,2610.1,0.33895216]
[1751486359864,3.8313463,2610.1,2609.8,2.88242375]
[1751486360094,7.30841762,2610.0,2609.9,0.67799801]
[1751486360295,7.30841762,2610.0,2609.9,0.67815164]
[1751486360499,3.83185806,2609.7,2609.5,2.88242375]
[1751486360668,3.477,2610.0,2609.5,2.16668494]
[1751486360669,3.8320049,2609.6,2609.5,2.16668494]
[1751486360872,0.73084176,2609.9,2609.5,2.16617992]
[1751486361101,3.83198925,2609.7,2609.3,2.16617992]
[1751486361285,3.83156442,2609.9,2609.3,2.16617992]
[1751486361487,3.83229861,2609.4,2609.3,2.16617992]
[1751486361725,4.59874453,2609.4,2609.3,2.16617992]
[1751486361901,3.477,2610.0,2609.3,2.16885198]
[1751486362205,3.477,2610.0,2608.2,6.33026662]
[1751486362206,3.477,2610.0,2609.2,2.16885198]
[1751486362499,3.83257611,2609.3,2609.2,2.16885198]
[1751486362710,9.21,2609.3,2608.9,2.16885198]
[1751486362879,3.83307779,2608.9,2608.7,2.16885198]
[1751486363069,3.477,2608.8,2608.7,2.16885198]
[1751486363274,7.31018,2608.8,2608.7,2.16885198]
[1751486363477,7.31018,2608.8,2608.7,2.17693172]
[1751486363704,3.477,2608.8,2608.7,2.17693172]
[1751486363876,3.477,2608.9,2608.7,2.17693172]
[1751486364215,3.477,2608.9,2608.2,2.17693172]
[1751486364405,3.477,2608.9,2608.4,2.17693172]
[1751486364572,3.477,2608.9,2608.5,2.17693172]
[1751486365069,3.477,2608.9,2608.6,0.34196883]
[1751486365275,3.477,2608.9,2608.8,0.1912]
[1751486365526,3.83347709,2608.6,2608.4,2.17693172]
[1751486365686,4.02455126,2608.7,2608.3,2.36813172]
[1751486365891,0.1912,2608.7,2608.4,0.34222616]
[1751486366191,0.1912,2608.7,2608.5,0.34309062]
[1751486366416,3.83364714,2608.5,2608.4,2.17693172]
[1751486366616,3.83364714,2608.5,2608.4,0.34314645]
[1751486366906,3.83409736,2608.2,2608.0,0.02]
[1751486367221,3.392,2608.1,2608.0,0.02]
[1751486367391,7.94880654,2608.1,2608.0,2.54130844]
[1751486367722,4.11459773,2608.1,2608.0,1.24484082]
[1751486368021,3.392,2608.1,2608.0,1.24484082]
[1751486368186,3.392,2608.1,2608.0,1.78168687]
[1751486368391,3.392,2608.4,2608.0,4.31846457]
[1751486368622,7.22583383,2608.4,2608.3,2.20758555]
[1751486368824,7.96753721,2608.4,2608.3,3.08804965]
[1751486369025,7.96753721,2608.4,2608.3,0.8804641]
[1751486369242,3.392,2608.4,2608.3,0.8804641]
[1751486369432,7.41696782,2608.4,2608.3,0.8804641]
[1751486369991,7.41696782,2608.4,2608.3,3.10008682]
[1751486370225,3.8340618,2608.2,2608.1,2.21962272]
[1751486370426,40.0,2607.9,2607.8,1e-08]
[1751486370625,3.834944,2607.6,2607.5,0.247]
[1751486370829,7.227944,2607.6,2607.5,0.5947772]
[1751486371406,27.78582709,2607.9,2607.5,0.5947772]
[1751486371407,13.22532424,2607.9,2607.5,0.5947772]
[1751486371595,3.393,2607.8,2607.6,0.34764581]
[1751486371802,3.393,2607.8,2607.7,0.34764581]
[1751486372738,9.212,2607.9,2607.7,0.34764581]
[1751486372899,3.394,2608.3,2607.7,0.1912]
[1751486373106,0.1912,2607.9,2607.5,0.4382]
[1751486373300,0.1912,2607.8,2607.6,0.34762673]
[1751486373640,0.1912,2607.8,2607.5,1.72772701]
[1751486373641,4.02585431,2607.8,2607.7,0.34767226]
[1751486373935,4.02592486,2607.8,2607.5,0.247]
[1751486374146,4.62083412,2607.7,2607.6,0.34769085]
[1751486374452,11.6158,2608.7,2607.5,0.247]
[1751486374741,30.0,2608.3,2607.6,0.34750921]
[1751486375032,3.8347639,2607.8,2607.7,0.34750921]
[1751486375243,9.16724029,2607.8,2607.7,0.34750921]
[1751486375406,3.83479694,2607.7,2607.5,0.247]
[1751486375604,3.834944,2607.6,2607.5,0.247]
[1751486375936,1.93847639,2607.8,2607.5,0.247]
[1751486376138,3.307,2607.6,2607.5,0.247]
[1751486376799,3.8347177,2607.8,2607.5,0.247]
[1751486377009,3.307,2608.1,2607.5,0.247]
[1751486377237,1.6032,2608.3,2607.5,0.247]
[1751486377543,3.83454479,2607.9,2607.5,0.247]
[1751486377915,3.83466272,2607.8,2607.5,0.247]
[1751486378251,1.6032,2608.3,2607.5,0.247]
[1751486378453,3.307,2608.0,2607.5,0.247]
[1751486378743,3.307,2608.0,2607.5,0.2458]
[1751486379310,3.83372582,2608.5,2607.5,4.08083859]
[1751486379529,3.307,2608.4,2607.5,0.2658]
[1751486379843,3.317,2608.4,2607.5,0.2658]
[1751486380028,3.317,2608.4,2607.6,3.8348437]
[1751486380229,3.317,2608.4,2607.5,5.58159502]
[1751486380412,3.317,2608.4,2607.5,1.74652701]
[1751486380608,0.01,2608.4,2607.5,1.74652701]
[1751486380810,0.01,2608.4,2607.6,3.83484957]
[1751486381110,0.01,2608.4,2607.6,3.834944]
[1751486381417,0.01,2608.4,2607.6,3.83483622]
[1751486381634,0.01,2608.4,2607.5,4.10080514]
[1751486381924,0.01,2608.4,2607.6,3.83483813]
[1751486382129,0.01,2608.4,2607.5,0.2658]
[1751486382324,0.01,2608.4,2607.5,11.91398218]
[1751486382727,0.01,2608.4,2608.0,3.83424593]
[1751486383135,0.01,2608.4,2608.3,3.83391481]
[1751486383341,0.01,2608.4,2607.6,1.5151]
[1751486383641,0.01,2608.4,2607.6,13.16328218]
[1751486383842,0.01,2608.4,2607.8,3.83464989]
[1751486384043,0.01,2608.4,2608.1,3.83407488]
[1751486384355,0.01,2608.4,2607.6,1.5151]
[1751486384554,0.01,2608.4,2608.0,0.1912]
[1751486385721,0.01,2608.4,2607.6,1.5151]
[1751486385928,0.1912,2608.0,2607.5,0.457]
[1751486387324,0.01,2608.4,2607.5,10.00185876]
[1751486387530,0.01,2608.4,2607.9,0.1912]
[1751486387729,0.01,2608.4,2608.1,0.1912]
[1751486387964,0.01,2608.4,2607.5,10.00185876]
[1751486388173,0.01,2608.4,2608.1,0.1912]
[1751486388380,0.01,2608.4,2608.3,13.56997357]
[1751486388556,0.01,2608.4,2608.3,0.1912]
[1751486388874,0.01,2608.4,2608.3,4.02511481]
[1751486389028,0.01,2608.4,2608.3,0.1912]
[1751486389228,0.01,2608.4,2608.3,13.76117357]
[1751486389448,0.01,2608.4,2608.3,4.02511481]
[1751486390034,0.01,2608.4,2608.3,4.01301481]
[1751486390229,5.30968029,2611.8,2609.3,1.6622]
[1751486390430,3.78738351,2611.4,2611.2,0.1912]
[1751486390784,3.78738351,2611.4,2609.5,0.55]
[1751486390785,30.0,2611.3,2609.3,2.51924138]
[1751486390988,0.1912,2610.5,2609.9,0.1912]
[1751486391273,16.26469269,2611.2,2609.8,3.83158746]
[1751486391274,0.005,2610.3,2609.8,3.83158746]
[1751486391457,0.005,2610.3,2610.1,0.1912]
[1751486392131,0.005,2610.3,2609.4,9.73605876]
[1751486392333,0.005,2610.3,2609.5,10.511]
[1751486392650,0.005,2610.3,2609.4,9.73605876]
[1751486392852,0.005,2610.3,2609.5,10.501]
[1751486393058,0.005,2610.3,2609.7,3.83185565]
[1751486393364,0.005,2610.3,2609.9,3.83145649]
[1751486393565,0.005,2610.3,2609.7,3.83173606]
[1751486393745,0.005,2610.3,2609.8,3.83164032]
[1751486393940,0.005,2610.3,2609.5,5.3807648]
[1751486394145,0.005,2610.3,2609.5,5.38081025]
[1751486394461,0.005,2610.3,2609.5,1.5487]
[1751486394644,0.005,2610.3,2609.5,12.0107]
[1751486394832,0.005,2610.3,2609.5,1.5487]
[1751486395231,0.005,2610.3,2609.2,3.83250852]
[1751486395469,0.005,2610.3,2608.4,11.21678577]
[1751486395470,3.83239211,2609.4,2608.6,1.5369]
[1751486395630,4.21574052,2609.3,2608.2,5.37087667]
[1751486395830,0.38323921,2609.3,2608.2,11.9929]
[1751486396031,1.5277,2609.2,2607.8,1.5167]
[1751486396230,1.5277,2609.2,2607.9,10.447]
[1751486396455,3.221,2609.1,2607.8,1.5167]
[1751486396772,3.83310894,2608.9,2608.2,0.034]
[1751486397063,3.83371009,2608.5,2608.2,0.034]
[1751486397226,0.38337101,2608.4,2608.2,0.034]
[1751486397432,3.221,2609.0,2608.2,0.03198073]
[1751486397632,1.5277,2609.2,2608.2,1.58138073]
[1751486397861,9.209,2609.9,2608.4,9.73605876]
[1751486398038,9.209,2609.9,2609.0,3.83280783]
[1751486398245,9.209,2609.9,2608.5,1.5494]
[1751486398446,9.209,2609.9,2609.0,3.83287978]
[1751486398646,12.43,2609.9,2608.7,10.438]
[1751486398848,13.673,2609.9,2609.0,3.83286904]
[1751486399063,10.452,2609.9,2609.1,3.83264481]
[1751486399267,10.452,2609.9,2608.7,10.435]
[1751486399268,10.452,2609.9,2608.8,9.73605876]
[1751486399441,9.209,2609.9,2609.3,3.83236006]
[1751486399768,9.209,2609.9,2608.5,1.5494]
[1751486399968,3.83239086,2609.4,2608.5,1.5494]
[1751486400179,3.221,2609.3,2608.5,1.5494]
[1751486400547,7.05351491,2609.3,2608.5,1.5494]
[1751486400948,3.221,2609.3,2608.5,1.5494]
[1751486401148,7.05347506,2609.3,2608.2,0.03198073]
[1751486401383,4.70271906,2609.2,2608.2,0.03198073]
[1751486401908,0.86998751,2609.2,2608.2,0.03198073]
[1751486402075,1.06118751,2609.2,2608.7,0.1912]
[1751486402278,0.1912,2609.2,2608.7,0.1912]
[1751486402480,3.221,2609.3,2608.2,0.03198073]
[1751486402692,3.4122,2609.3,2608.8,0.1912]
[1751486402859,3.4109,2609.3,2608.8,0.1912]
[1751486403060,3.83284343,2609.1,2608.2,0.03198073]
[1751486403265,0.1912,2609.1,2608.6,0.1912]
[1751486404006,4.02401154,2609.1,2608.6,0.1912]
[1751486404208,3.8329,2609.0,2608.6,0.1912]
[1751486404418,10.8889701,2609.2,2608.2,0.03198073]
[1751486404718,15.68331481,2608.3,2608.2,0.03198073]
[1751486404884,28.11431481,2608.3,2608.2,0.03198073]
[1751486405081,28.66431481,2608.3,2608.2,0.03198073]
[1751486405292,31.91412465,2608.3,2608.2,1e-08]
[1751486405471,3.834944,2607.6,2607.5,0.2658]
[1751486405667,45.358644,2607.6,2607.5,0.2658]
[1751486405880,45.358644,2607.6,2606.1,1.526]
[1751486405881,30.0,2607.4,2606.1,1.526]
[1751486406067,10.0,2607.5,2606.2,0.1912]
[1751486406068,5.49586244,2606.5,2606.2,0.1912]
[1751486406303,17.92686244,2606.5,2605.1,2.68375966]
[1751486406613,10.8693,2606.5,2605.7,0.1912]
[1751486406939,17.92686244,2606.5,2605.7,0.1912]
[1751486407235,20.10319132,2606.5,2605.7,0.1912]
[1751486407408,50.10319132,2606.5,2605.1,1.5738]
[1751486407610,20.10319132,2606.5,2605.3,0.1912]
[1751486407810,50.10319132,2606.5,2605.3,0.1912]
[1751486408029,60.65319132,2606.5,2605.3,0.1912]
[1751486408391,60.65319132,2606.5,2606.4,1e-08]
[1751486408593,60.65319132,2606.5,2604.9,3.83881799]
[1751486408594,11.5892,2606.4,2604.9,3.83881799]
[1751486408824,3.8372545,2606.1,2604.9,3.83888779]
[1751486409030,3.83733869,2606.0,2604.9,3.83888779]
[1751486409232,17.05845289,2606.3,2605.1,3.8385837]
[1751486409404,3.139,2606.2,2605.3,3.83832266]
[1751486409610,3.83731228,2606.0,2604.9,3.83883609]
[1751486409839,3.139,2606.2,2604.6,1.5097]
[1751486410032,3.83723988,2606.1,2605.0,3.83876393]
[1751486410235,14.12823988,2606.1,2605.0,3.83876393]
[1751486410394,16.23865997,2606.1,2605.0,3.83876393]
[1751486410732,16.23865997,2606.1,2604.6,5.34897102]
[1751486410733,3.83782785,2605.7,2604.6,5.34897102]
[1751486410933,3.83729854,2606.0,2604.8,3.83894031]
[1751486411231,16.23860392,2606.1,2604.8,3.83894031]
[1751486411232,3.83746033,2605.9,2604.8,3.83894031]
[1751486411544,3.14,2605.8,2604.8,3.83894658]
[1751486411900,6.9776048,2605.8,2604.8,3.83894658]
[1751486412310,3.14,2605.8,2604.8,3.83906633]
[1751486412643,3.83775697,2605.7,2604.6,5.34898999]
[1751486413021,3.14,2605.8,2604.6,5.34898999]
[1751486413022,3.14,2605.8,2604.6,1.5097]
[1751486413344,3.32444685,2605.7,2604.2,1.5741]
[1751486413530,7.16222579,2605.7,2604.2,5.41402936]
[1751486413707,3.83844336,2605.3,2604.2,5.41397548]
[1751486413908,3.83832955,2605.3,2604.2,5.41397548]
[1751486414452,3.8386995,2605.1,2604.2,1.5741]
[1751486414764,13.359,2605.2,2604.2,1.5741]
[1751486414930,13.359,2605.2,2604.3,3.8397132]
[1751486415118,3.141,2605.1,2604.3,3.83974889]
[1751486415320,3.141,2605.1,2604.2,1.5741]
[1751486415567,6.97962923,2605.1,2604.2,1.5741]
[1751486415859,3.6416698,2605.1,2604.2,1.5741]
[1751486416061,3.6416698,2605.1,2604.2,5.41404312]
[1751486416446,3.6416698,2605.1,2604.2,1.5741]
[1751486416648,7.48037828,2605.1,2604.2,1.5741]
[1751486416847,7.48030018,2605.1,2604.2,1.5741]
[1751486417451,3.6416698,2605.1,2604.2,1.5741]
[1751486417767,0.7480215,2605.0,2604.2,1.5741]
[1751486418268,3.057,2604.9,2604.2,1.5741]
[1751486418636,2.21158651,2604.9,2604.4,0.1912]
[1751486418965,2.40278651,2604.9,2604.4,0.1912]
[1751486419165,0.1912,2604.9,2604.4,0.1912]
[1751486419370,1.5996,2605.7,2604.2,1.5741]
[1751486419541,3.058,2605.2,2604.8,0.1912]
[1751486420224,3.83890171,2605.0,2604.2,1.5741]
[1751486420424,3.83894851,2604.9,2604.2,1.6167]
[1751486420669,3.83914206,2604.8,2604.4,0.1912]
[1751486420969,4.03015039,2604.9,2604.4,0.1912]
[1751486420970,0.1912,2604.9,2604.4,0.1912]
[1751486421268,3.83906633,2604.8,2604.4,0.1912]
[1751486421436,4.03019485,2604.9,2604.4,0.1912]
[1751486421636,0.59421949,2604.9,2604.4,0.1912]
[1751486421858,3.058,2604.8,2604.4,0.1912]
[1751486422099,3.83929415,2604.7,2604.2,0.0426]
[1751486422418,3.058,2604.6,2604.2,0.2338]
[1751486422796,4.03042021,2604.7,2604.2,0.2338]
[1751486422991,1.5371,2604.9,2604.2,0.0426]
[1751486423308,3.8398034,2604.3,2604.2,0.0426]
[1751486423462,5.4093034,2604.3,2604.2,0.0426]
[1751486423665,15.4093034,2604.3,2604.2,1e-08]
[1751486423869,58.5463034,2604.3,2604.2,1e-08]
[1751486424093,18.5473034,2604.3,2604.2,1e-08]
[1751486424364,5.4093034,2604.3,2604.2,1e-08]
[1751486424577,18.5403034,2604.3,2604.2,1e-08]
[1751486424989,5.4093034,2604.3,2604.2,1e-08]
[1751486425308,18.5403034,2604.3,2604.2,1e-08]
[1751486425611,6.87253374,2604.3,2604.2,1e-08]
[1751486425813,49.99553374,2604.3,2604.2,1e-08]
[1751486425980,59.99553374,2604.3,2604.2,1e-08]
[1751486426181,60.54553374,2604.3,2604.2,1e-08]
[1751486426374,59.97853374,2604.3,2604.2,1e-08]
[1751486426703,29.97653374,2604.3,2604.2,1e-08]
[1751486427093,29.97153374,2604.3,2604.2,1e-08]
[1751486427661,59.97153374,2604.3,2604.2,1e-08]
[1751486427869,30.0,2604.1,2603.1,0.02]
[1751486428068,3.84141097,2603.3,2603.1,0.02]
[1751486428263,3.059,2603.2,2603.1,0.02]
[1751486428513,3.059,2603.3,2603.1,0.02]
[1751486428713,2.977,2603.4,2603.1,0.02]
[1751486429067,3.84046337,2603.9,2603.1,0.02]
[1751486429368,16.83455839,2603.8,2603.1,0.02]
[1751486429586,3.84070473,2603.7,2603.1,0.02]
[1751486429894,3.84045656,2603.9,2603.1,0.02]
[1751486430227,12.975,2603.8,2603.1,0.02]
[1751486430392,9.987,2603.7,2603.1,0.02]
[1751486430595,3.84135772,2603.3,2603.1,0.02]
[1751486430813,3.84142593,2603.2,2603.1,0.02]
[1751486431410,2.977,2603.4,2603.1,0.02]
[1751486431713,3.84136579,2603.3,2603.1,0.02]
[1751486431912,3.84142593,2603.2,2603.1,0.02]
[1751486432314,2.977,2603.4,2603.1,0.02]
[1751486432513,2.978,2603.4,2603.1,0.02]
[1751486432902,6.81921261,2603.4,2603.1,0.02]
[1751486433117,3.841285,2603.3,2603.1,0.02]
[1751486433321,2.978,2603.4,2603.1,0.02]
[1751486433527,6.81921606,2603.4,2603.1,0.02]
[1751486433820,3.84142593,2603.2,2603.1,0.02]
[1751486434030,2.978,2603.2,2603.1,0.02]
[1751486434231,6.81942593,2603.2,2603.1,0.02]
[1751486434529,3.17,2603.2,2603.1,0.02]
[1751486434726,7.01142593,2603.2,2603.1,0.02]
[1751486434930,3.17,2603.2,2603.1,0.02]
[1751486435285,3.84080305,2603.7,2603.1,1.6433]
[1751486435500,0.192,2603.6,2603.1,1.8353]
[1751486435898,2.978,2603.8,2603.1,1.6433]
[1751486436227,2.978,2603.8,2603.5,0.192]
[1751486437320,0.192,2604.1,2603.7,0.192]
[1751486437321,2.978,2604.1,2603.7,0.192]
[1751486437523,6.81819497,2604.1,2603.7,0.192]
[1751486437703,3.84041925,2603.9,2603.7,0.192]
[1751486437898,3.84041925,2603.9,2603.1,1.6433]
[1751486438098,6.8181542,2604.1,2603.6,0.192]
[1751486438099,3.840574,2603.8,2603.6,0.192]
[1751486438298,0.192,2604.0,2603.1,1.6433]
[1751486438299,3.84093839,2603.6,2603.1,1.6433]
[1751486438623,0.192,2603.7,2603.2,0.192]
[1751486439491,4.03270059,2603.7,2603.2,0.192]
[1751486439688,3.84084479,2603.6,2603.2,0.192]
[1751486439891,3.84107215,2603.5,2603.2,0.192]
[1751486440433,3.84055585,2603.8,2603.1,0.02]
[1751486440598,9.887,2604.0,2603.1,0.02]
[1751486440599,3.84142593,2603.2,2603.1,0.02]
[1751486440804,6.93042593,2603.2,2603.1,0.02]
[1751486443127,27.66812593,2603.2,2603.1,0.02]
[1751486444625,27.66912593,2603.2,2603.1,0.02]
[1751486445008,31.68245017,2603.2,2603.1,0.02]
[1751486445928,28.78445017,2603.2,2603.1,0.02]
[1751486446135,20.9297,2603.2,2603.1,0.02]
[1751486446305,35.93642593,2603.2,2603.1,0.02]
[1751486446637,19.421,2603.2,2603.1,0.02]
[1751486446929,22.093,2603.2,2603.1,0.02]
[1751486447651,0.192,2603.2,2603.1,0.02]
[1751486447806,2.898,2603.4,2603.1,1.8663]
[1751486448322,2.898,2603.4,2603.2,0.192]
[1751486449504,2.898,2603.4,2603.1,1.6743]
[1751486449734,9.231,2603.9,2603.3,0.192]
[1751486449904,9.231,2603.9,2603.7,1.6583]
[1751486450100,2.908,2604.2,2603.8,0.192]
[1751486450342,2.908,2604.2,2603.8,4.03242982]
[1751486450549,2.908,2604.2,2603.8,0.192]
[1751486450842,2.908,2604.2,2603.8,4.03251727]
[1751486451137,2.908,2604.2,2603.8,0.192]
[1751486451301,2.908,2604.2,2603.7,5.49891726]
[1751486451508,2.908,2604.2,2604.1,0.192]
[1751486453423,2.908,2604.2,2603.3,1.10995966]
[1751486453424,2.908,2604.2,2603.3,1.6287]
[1751486453623,0.192,2603.9,2603.4,0.192]
[1751486454026,4.03240033,2603.9,2603.4,0.192]
[1751486454213,0.192,2603.9,2603.4,0.192]
[1751486454636,2.818,2604.0,2603.3,5.46993876]
[1751486454851,2.818,2604.0,2603.7,0.192]
[1751486455052,3.02,2604.2,2603.7,0.192]
[1751486455406,6.86003689,2604.2,2603.7,0.192]
[1751486455744,3.84029814,2604.0,2603.7,0.192]
[1751486455920,6.86000522,2604.2,2603.7,0.192]
[1751486455921,3.8401512,2604.1,2603.7,0.192]
[1751486456616,3.8400983,2604.1,2603.7,0.192]
[1751486457339,0.202,2604.2,2603.7,0.192]
[1751486457521,3.02,2604.2,2603.7,0.192]
[1751486457950,3.84016499,2604.1,2603.7,0.192]
[1751486459018,3.8400983,2604.1,2603.7,0.192]
[1751486459552,3.8401176,2604.1,2603.7,0.192]
[1751486460120,6.86001549,2604.2,2603.7,0.192]
[1751486460318,3.84011938,2604.1,2603.7,0.192]
[1751486460521,1.07000605,2604.1,2603.1,0.02]
[1751486460718,0.192,2603.7,2603.2,0.192]
[1751486460958,3.33828063,2604.2,2603.1,0.02]
[1751486460959,0.192,2603.4,2603.1,0.02]
[1751486461252,6.65893506,2603.6,2603.2,0.192]
[1751486461635,2.818,2603.6,2603.2,0.192]
[1751486461834,6.6589008,2603.6,2603.2,0.192]
[1751486462222,6.6589008,2603.6,2603.1,0.02]
[1751486462223,6.65889299,2603.6,2603.1,0.02]
[1751486462449,4.03306501,2603.5,2603.1,0.02]
[1751486462851,3.84115262,2603.4,2603.1,0.02]
[1751486463050,3.84120033,2603.4,2603.1,0.02]
[1751486463266,4.0330491,2603.5,2603.1,0.02]
[1751486464063,0.192,2603.5,2603.1,0.02]
[1751486465152,4.03298981,2603.5,2603.1,0.02]
[1751486465664,3.84081929,2603.7,2603.1,0.02]
[1751486465963,0.192,2603.6,2603.2,0.192]
[1751486466350,3.84128766,2603.3,2603.1,0.02]
[1751486466553,3.84142593,2603.2,2603.1,0.02]
[1751486467168,6.57942593,2603.2,2603.1,0.02]
[1751486467572,2.738,2603.2,2603.1,0.02]
[1751486467769,3.84142593,2603.2,2603.1,0.02]
[1751486467937,6.57942593,2603.2,2603.1,0.02]
[1751486468965,2.738,2603.2,2603.1,0.02]
[1751486469963,6.57942593,2603.2,2603.1,0.02]
[1751486470265,7.64069813,2603.2,2603.1,0.02]
[1751486470460,17.65069813,2603.2,2603.1,0.02]